bitfinex/quotes_ETHUSD_20220309
["timestamp","ask_amount","ask_price","bid_price","bid_amount"]
[1646794040590,1.11948732,2625.9,2625.3,1.56074774]
[1646794040793,0.00116804,2625.4,2625.3,1.56074774]
[1646794040994,0.5,2626.0,2625.4,0.00124837]
[1646794041589,0.5,2626.0,2625.3,1.55356072]
[1646794041833,1.21276865,2625.8,2625.2,0.010164]
[1646794042036,1.21276865,2625.8,2625.2,3.510164]
[1646794042232,0.5,2626.0,2625.2,3.510164]
[1646794043236,0.00114963,2625.7,2625.2,3.510164]
[1646794043435,0.00114963,2625.7,2625.2,0.010164]
[1646794043436,0.95431808,2625.7,2625.2,0.010164]
[1646794044038,0.95316845,2625.7,2625.2,0.010164]
[1646794044437,0.00382917,2625.6,2625.2,0.010164]
[1646794044836,0.00382917,2625.6,2625.2,3.510164]
[1646794045237,0.95316845,2625.7,2625.2,3.510164]
[1646794045684,0.00382917,2625.5,2625.3,0.3822]
[1646794045885,0.00382917,2625.5,2625.4,3.5]
[1646794046089,0.00382917,2625.5,2625.3,0.3822]
[1646794046287,0.00382917,2625.5,2625.4,3.5]
[1646794046486,0.5,2626.0,2625.4,3.510164]
[1646794046886,0.5,2626.0,2625.4,0.010164]
[1646794046887,0.00382917,2625.5,2625.4,0.010164]
[1646794047785,0.5,2626.0,2625.5,0.00129831]
[1646794047986,0.00382917,2625.6,2625.5,0.00129831]
[1646794048391,0.00382917,2625.6,2625.5,0.01146231]
[1646794048593,0.00382917,2625.6,2625.5,0.55946231]
[1646794048893,0.5,2626.0,2625.5,0.55946231]
[1646794048894,0.5,2626.0,2625.5,4.05946231]
[1646794049333,0.00382917,2625.7,2625.6,1.17680277]
[1646794049531,0.00382917,2625.7,2625.6,0.010164]
[1646794050131,0.5,2626.0,2625.6,0.010164]
[1646794050533,0.00382917,2625.8,2625.6,0.010164]
[1646794051435,0.5,2626.0,2625.6,0.010164]
[1646794051634,0.00382917,2625.8,2625.6,0.010164]
[1646794052634,0.5,2626.0,2625.6,0.010164]
[1646794052834,0.00382917,2625.8,2625.6,0.010164]
[1646794053686,1.10636367,2625.9,2625.6,0.010164]
[1646794054086,0.00382917,2625.8,2625.6,0.010164]
[1646794054990,0.5,2626.0,2625.6,0.010164]
[1646794055191,0.00382917,2625.8,2625.6,0.010164]
[1646794056188,0.5,2626.0,2625.6,0.010164]
[1646794056388,0.00382917,2625.8,2625.6,0.010164]
[1646794057236,0.5,2626.0,2625.6,0.010164]
[1646794057637,0.00382917,2625.8,2625.6,0.010164]
[1646794058039,1.22479414,2625.7,2625.6,0.010164]
[1646794058740,0.3,2625.8,2625.6,0.010164]
[1646794058939,0.30382917,2625.8,2625.6,0.010164]
[1646794059139,0.00382917,2625.8,2625.6,0.010164]
[1646794059741,1.11422583,2625.7,2625.6,0.010164]
[1646794060141,0.30382917,2625.8,2625.6,0.010164]
[1646794060342,0.00382917,2625.8,2625.6,0.010164]
[1646794060997,0.5,2626.0,2625.6,0.010164]
[1646794061197,0.00382917,2625.8,2625.6,0.010164]
[1646794062200,1.05079126,2625.9,2625.6,0.010164]
[1646794062497,1.35079126,2625.9,2625.6,0.010164]
[1646794062698,0.00382917,2625.8,2625.6,0.010164]
[1646794063399,1.35079126,2625.9,2625.6,0.010164]
[1646794063602,0.00382917,2625.8,2625.6,0.010164]
[1646794064636,0.3,2625.9,2625.6,0.010164]
[1646794064837,0.8,2626.0,2625.6,0.010164]
[1646794064838,0.00382917,2625.8,2625.6,0.010164]
[1646794065835,0.5,2626.0,2625.6,0.010164]
[1646794066035,0.00382917,2625.8,2625.6,0.010164]
[1646794067036,0.5,2626.0,2625.6,0.010164]
[1646794067236,0.00115254,2625.8,2625.6,0.010164]
[1646794067836,1.9716882,2626.6,2625.7,5.0]
[1646794068097,1.9051645,2627.3,2625.8,8.90799284]
[1646794068098,0.93292606,2627.1,2625.8,8.90799284]
[1646794068304,0.93292606,2627.3,2626.0,0.3822]
[1646794068492,1.77525492,2627.5,2626.2,0.3822]
[1646794068493,0.93292606,2627.4,2626.2,0.3822]
[1646794068692,0.93292606,2627.4,2626.3,4.048]
[1646794068894,0.93292606,2627.4,2626.3,4.348]
[1646794069094,0.86822078,2627.0,2626.2,0.010164]
[1646794069294,0.86822078,2627.0,2626.3,0.1902]
[1646794069495,2.07412606,2627.2,2626.3,0.1902]
[1646794069698,0.00114875,2627.0,2626.3,0.200364]
[1646794070003,0.00114875,2627.0,2626.3,4.248364]
[1646794070192,0.00114875,2627.0,2626.4,1.5599102]
[1646794070393,0.00114875,2627.0,2626.5,1.1204]
[1646794070592,1.01294889,2627.4,2626.6,0.88920229]
[1646794070795,1.01294889,2627.4,2626.6,4.93720229]
[1646794070796,0.00382629,2626.8,2626.6,4.93720229]
[1646794070992,0.00382629,2626.8,2626.6,0.548]
[1646794071733,1.01294889,2627.4,2626.6,0.010164]
[1646794072235,1.19571053,2626.8,2626.6,0.010164]
[1646794072934,1.1355,2627.3,2626.6,0.010164]
[1646794073338,1.4355,2627.3,2626.6,0.010164]
[1646794073538,0.00382629,2626.8,2626.6,0.010164]
[1646794074143,1.09862658,2627.2,2626.6,0.010164]
[1646794074544,0.00382629,2626.8,2626.6,0.010164]
[1646794075343,1.09862658,2627.2,2626.6,0.010164]
[1646794075587,0.00382629,2626.8,2626.6,1.010164]
[1646794075786,0.00382629,2626.8,2626.6,0.010164]
[1646794076689,1.1355,2627.3,2626.6,0.010164]
[1646794076887,0.00382629,2626.8,2626.6,0.010164]
[1646794077888,1.03231331,2627.1,2626.6,0.010164]
[1646794078092,0.00382629,2626.8,2626.6,0.010164]
[1646794079095,0.3,2627.2,2626.6,0.010164]
[1646794079331,0.00382629,2626.8,2626.6,0.010164]
[1646794080134,1.1355,2627.3,2626.6,0.010164]
[1646794080532,0.00382629,2626.8,2626.6,0.010164]
[1646794081334,1.08611052,2627.0,2626.6,0.010164]
[1646794081733,0.00382629,2626.8,2626.6,0.010164]
[1646794082634,1.08611052,2627.0,2626.6,0.010164]
[1646794082837,0.00382629,2626.8,2626.6,0.010164]
[1646794083787,1.1355,2627.3,2626.6,0.010164]
[1646794084288,0.00382629,2626.8,2626.6,0.010164]
[1646794084987,1.02352047,2626.9,2626.6,0.010164]
[1646794085390,0.00382629,2626.8,2626.6,0.010164]
[1646794086189,1.1355,2627.3,2626.6,0.010164]
[1646794086588,0.00382629,2626.8,2626.6,0.010164]
[1646794087434,1.2368,2627.0,2626.6,0.010164]
[1646794087633,1.2310187,2626.8,2626.6,0.010164]
[1646794087836,0.00382629,2626.8,2626.6,0.010164]
[1646794088638,4.21402606,2627.6,2626.6,0.010164]
[1646794088839,1.19999929,2627.2,2626.6,0.010164]
[1646794089039,0.00382629,2626.8,2626.6,0.010164]
[1646794089942,0.03876214,2627.7,2626.6,0.55727714]
[1646794090140,0.03876214,2627.7,2626.9,1.0]
[1646794090342,0.9275997,2627.6,2626.9,1.0]
[1646794090801,0.5,2627.9,2626.9,4.50927714]
[1646794090999,0.5,2627.9,2626.9,4.80927714]
[1646794091196,0.5,2627.9,2626.9,1.30927714]
[1646794091399,0.00382629,2627.4,2626.9,1.00927714]
[1646794091798,0.00382629,2627.4,2627.0,3.5]
[1646794092099,0.00382629,2627.4,2626.9,1.00927714]
[1646794092298,0.93796864,2627.7,2626.9,1.00927714]
[1646794092599,0.93796864,2627.7,2626.9,4.50927714]
[1646794092600,0.00382629,2627.3,2626.9,4.50927714]
[1646794092799,0.00382629,2627.3,2626.9,1.00927714]
[1646794092998,0.00382629,2627.3,2626.9,0.00927714]
[1646794093401,0.93796864,2627.7,2626.9,0.00927714]
[1646794093801,0.00382629,2627.2,2626.9,0.00927714]
[1646794094640,0.93796864,2627.7,2626.9,0.00927714]
[1646794095042,0.00382629,2627.2,2626.9,0.01105086]
[1646794095941,1.03687866,2627.3,2626.9,0.01105086]
[1646794096144,0.00382629,2627.2,2626.9,0.01105086]
[1646794097143,1.33687866,2627.3,2626.9,0.01105086]
[1646794097341,0.00382629,2627.2,2626.9,0.01105086]
[1646794098187,1.33687866,2627.3,2626.9,0.01105086]
[1646794098587,0.00382629,2627.2,2626.9,0.01105086]
[1646794099387,1.03687866,2627.3,2626.9,0.01105086]
[1646794099788,0.00382629,2627.2,2626.9,0.01105086]
[1646794100587,1.03687866,2627.3,2626.9,0.01105086]
[1646794100789,1.2306,2627.5,2626.9,0.01105086]
[1646794100995,1.4196638,2627.9,2626.9,13.63125086]
[1646794100996,0.00382629,2627.2,2626.9,13.63125086]
[1646794101188,0.5,2627.9,2627.3,0.00426305]
[1646794101388,0.0194622,2628.1,2627.4,0.548]
[1646794101588,0.0194622,2628.1,2627.5,3.5]
[1646794101842,0.0194622,2628.1,2627.5,4.048]
[1646794102141,0.0194622,2628.1,2627.6,1.19548804]
[1646794102742,0.0194622,2628.1,2627.6,4.69548804]
[1646794102941,0.0194622,2628.1,2627.6,4.7065389]
[1646794103145,0.0194622,2628.1,2627.6,0.01105086]
[1646794104344,0.0194622,2628.1,2627.6,0.95468293]
[1646794104545,0.0194622,2628.1,2627.7,3.5]
[1646794105791,0.00381673,2628.0,2627.8,0.1902]
[1646794106593,0.0194622,2628.1,2627.8,0.1902]
[1646794106994,0.00381673,2628.0,2627.8,0.1902]
[1646794107698,0.00381673,2628.0,2627.8,0.4902]
[1646794107896,0.0194622,2628.1,2627.9,3.5]
[1646794108095,0.0194622,2628.1,2628.0,1.1273691]
[1646794109734,0.0194622,2628.1,2627.8,4.2382]
[1646794109935,0.0194622,2628.1,2627.7,0.1902]
[1646794110536,0.00339853,2628.0,2627.7,0.1902]
[1646794111138,0.00339853,2628.0,2627.6,1.12019396]
[1646794111538,0.0194622,2628.1,2627.6,0.01105086]
[1646794111739,0.00339853,2627.9,2627.6,0.01105086]
[1646794112540,1.23437564,2627.7,2627.6,0.01105086]
[1646794113192,0.00339853,2627.9,2627.6,0.01105086]
[1646794113996,0.0194622,2628.1,2627.6,0.01105086]
[1646794114194,0.00381673,2627.9,2627.6,0.01105086]
[1646794115194,0.0194622,2628.1,2627.6,0.01105086]
[1646794115395,0.00381673,2627.9,2627.6,0.01105086]
[1646794116295,0.0194622,2628.1,2627.6,0.01105086]
[1646794116498,1.12130447,2628.1,2627.6,0.01105086]
[1646794116736,0.00381673,2627.9,2627.6,0.01105086]
[1646794117635,1.12130447,2628.1,2627.6,0.01105086]
[1646794117838,0.00381673,2627.9,2627.6,0.01105086]
[1646794118841,0.0194622,2628.1,2627.6,0.01105086]
[1646794119044,0.00381673,2627.9,2627.6,0.01105086]
[1646794120041,1.00491016,2628.0,2627.6,0.01105086]
[1646794120241,0.00381673,2627.9,2627.6,0.01105086]
[1646794121083,0.0194622,2628.1,2627.6,0.01105086]
[1646794121497,0.00381673,2627.9,2627.6,0.01105086]
[1646794122083,0.00381673,2627.9,2627.6,1.01105086]
[1646794122284,0.0194622,2628.1,2627.6,0.01017163]
[1646794122684,0.00381673,2627.9,2627.6,1.01017163]
[1646794123490,0.0194622,2628.1,2627.6,1.01017163]
[1646794123892,0.00381673,2627.9,2627.6,1.01017163]
[1646794124836,0.0194622,2628.1,2627.6,1.01017163]
[1646794125036,0.00381673,2627.9,2627.6,0.01017163]
[1646794126138,0.0194622,2628.1,2627.6,0.01017163]
[1646794126337,0.00381673,2627.9,2627.6,0.01017163]
[1646794126738,0.00381673,2627.9,2627.6,1.90907561]
[1646794126940,0.0194622,2628.1,2627.9,0.0042336]
[1646794128895,0.02060722,2628.1,2627.9,0.0042336]
[1646794129695,0.0194622,2628.1,2627.9,0.0042336]
[1646794129896,0.02060722,2628.1,2627.9,0.0042336]
[1646794130896,0.0194622,2628.1,2627.9,0.0042336]
[1646794131098,0.02326938,2628.1,2627.9,0.0042336]
[1646794132138,0.0194622,2628.1,2627.9,0.0042336]
[1646794132337,0.02326938,2628.1,2627.9,0.0042336]
[1646794133142,0.0194622,2628.1,2627.9,0.0042336]
[1646794133641,0.02326938,2628.1,2627.9,0.0042336]
[1646794134441,0.0194622,2628.1,2627.9,0.0042336]
[1646794134646,3.0,2628.0,2627.6,0.00989624]
[1646794135499,3.0,2628.0,2627.7,1.55898205]
[1646794135688,0.0194622,2628.1,2627.7,1.55898205]
[1646794135888,0.00380704,2628.0,2627.6,0.00989624]
[1646794136088,0.00380704,2628.0,2627.7,1.55894943]
[1646794136989,0.0194622,2628.1,2627.7,1.55894943]
[1646794137190,0.00380711,2628.0,2627.6,0.00989624]
[1646794137389,0.00380711,2628.0,2627.7,1.55896656]
[1646794137989,0.0194622,2628.1,2627.7,1.55896656]
[1646794138194,0.0194622,2628.1,2627.6,0.00989624]
[1646794138195,0.00380711,2628.0,2627.6,0.00989624]
[1646794138394,0.00380711,2628.0,2627.7,1.55898426]
[1646794139239,0.0194622,2628.1,2627.7,1.55898426]
[1646794139455,0.00380711,2628.0,2627.7,1.55898426]
[1646794140441,0.0194622,2628.1,2627.7,1.55898426]
[1646794140642,0.00380711,2628.0,2627.7,1.55898426]
[1646794141643,0.0194622,2628.1,2627.7,1.55898426]
[1646794141843,0.00380711,2628.0,2627.7,1.55898426]
[1646794142844,0.0194622,2628.1,2627.7,1.55898426]
[1646794143110,0.00380711,2628.0,2627.7,1.55898426]
[1646794143306,0.00380711,2628.0,2627.6,0.01396394]
[1646794143708,11.69380711,2628.0,2627.6,0.01396394]
[1646794144004,0.5,2627.7,2627.6,0.01396394]
[1646794144204,4.0,2627.7,2627.6,0.01396394]
[1646794144404,4.3,2627.7,2627.6,0.01396394]
[1646794144805,5.3,2627.7,2627.6,0.01396394]
[1646794146004,1.5,2627.7,2627.6,0.01396394]
[1646794146204,0.5,2627.7,2627.6,0.01396394]
[1646794146405,0.5,2627.7,2627.6,1.57314929]
[1646794147847,0.00380682,2628.0,2627.7,0.54706819]
[1646794148046,0.00380682,2628.0,2627.8,1.55918535]
[1646794148246,0.50380682,2628.0,2627.8,1.55918535]
[1646794148446,0.00380682,2628.0,2627.8,1.55918535]
[1646794148848,0.0194622,2628.1,2627.8,1.55918535]
[1646794149047,0.00380718,2628.0,2627.8,1.55918535]
[1646794149649,0.00380718,2628.0,2627.9,1.20131663]
[1646794150049,0.0194622,2628.1,2627.9,2.76050198]
[1646794150352,0.0194622,2628.1,2628.0,1.55918535]
[1646794153302,0.0194622,2628.1,2627.8,1.55918535]
[1646794153601,0.0194622,2628.1,2627.9,1.55918535]
[1646794153804,0.0194622,2628.1,2627.8,1.55918535]
[1646794154002,0.0194622,2628.1,2627.9,1.55918535]
[1646794154241,0.0194622,2628.1,2627.7,0.54706819]
[1646794154441,0.0194622,2628.1,2627.8,1.55912462]
[1646794155243,0.02326938,2628.1,2627.8,1.55912462]
[1646794156047,0.0194622,2628.1,2627.8,1.55912462]
[1646794156243,0.02326938,2628.1,2627.8,1.55912462]
[1646794157047,1.35763796,2628.3,2627.8,1.55912462]
[1646794157446,0.00380718,2628.1,2627.8,1.55912462]
[1646794158401,4.5,2628.2,2627.8,1.55912462]
[1646794158800,1.0,2628.2,2627.8,1.55912462]
[1646794159198,1.35763796,2628.3,2627.8,1.55912462]
[1646794160200,0.00379759,2628.2,2627.8,1.55912462]
[1646794160798,0.27326938,2628.3,2627.8,1.55912462]
[1646794161003,1.3,2628.4,2627.8,1.55912462]
[1646794161201,1.0,2628.5,2627.8,1.55912462]
[1646794161202,0.00379752,2628.2,2627.8,1.55912462]
[1646794162042,1.49676668,2628.5,2627.8,1.55912462]
[1646794162443,0.00379752,2628.2,2627.8,1.55912462]
[1646794162843,1.4505642,2628.5,2627.8,1.55912462]
[1646794163046,0.25379752,2628.5,2627.7,0.54706819]
[1646794163549,0.0155102,2628.6,2627.7,0.54706819]
[1646794163947,0.88677572,2628.6,2627.7,0.54706819]
[1646794164146,3.5,2628.5,2627.7,0.54706819]
[1646794164748,0.00113928,2628.3,2627.7,0.54706819]
[1646794165593,1.15073582,2628.1,2627.7,0.54706819]
[1646794168500,0.00378774,2628.3,2627.7,0.54706819]
[1646794169255,1.2181,2628.4,2627.7,0.54706819]
[1646794169656,0.00378789,2628.3,2627.7,0.54706819]
[1646794169955,0.90171251,2628.3,2627.7,0.54706819]
[1646794170156,0.00378789,2628.3,2627.7,0.54706819]
[1646794170357,1.2181,2628.4,2627.8,1.0]
[1646794170755,0.00378789,2628.3,2627.7,0.54706819]
[1646794171657,2.10299256,2628.4,2627.7,0.54706819]
[1646794171857,0.00378789,2628.3,2627.7,0.54706819]
[1646794172758,2.10299256,2628.4,2627.7,0.54706819]
[1646794173019,3.50378789,2628.3,2627.7,0.54706819]
[1646794173206,0.548,2628.2,2627.7,0.54706819]
[1646794173405,3.5,2628.1,2627.7,0.54706819]
[1646794173805,4.5,2628.1,2627.7,0.54706819]
[1646794174007,3.5,2628.1,2627.7,0.54706819]
[1646794174208,4.5,2628.1,2627.7,0.54706819]
[1646794174409,3.5,2628.1,2627.7,0.54706819]
[1646794174606,4.5,2628.1,2627.7,0.54706819]
[1646794176111,1.0,2628.1,2627.7,0.54706819]
[1646794176309,0.00378774,2628.3,2627.7,0.54706819]
[1646794176512,3.10299256,2628.4,2627.7,0.54706819]
[1646794176746,0.00378774,2628.3,2627.7,0.54706819]
[1646794177649,3.40299256,2628.4,2627.7,0.54706819]
[1646794177650,2.40299256,2628.4,2627.7,0.54706819]
[1646794177852,3.40299256,2628.4,2627.7,0.54706819]
[1646794178050,0.00378789,2628.3,2627.7,0.54706819]
[1646794178851,2.10299256,2628.4,2627.7,0.54706819]
[1646794178852,1.2181,2628.4,2627.7,0.54706819]
[1646794179251,0.00378789,2628.3,2627.7,0.54706819]
[1646794179854,0.00378789,2628.3,2627.9,1.17070961]
[1646794180054,1.2181,2628.4,2627.9,1.17070961]
[1646794180253,0.00378789,2628.3,2627.9,1.17070961]
[1646794180910,0.00378789,2628.3,2627.7,1.72346819]
[1646794181314,0.0155102,2628.6,2627.7,1.72346819]
[1646794181516,0.00378803,2628.3,2627.7,1.72346819]
[1646794182016,0.00378803,2628.3,2627.7,2.61247199]
[1646794182425,0.0155102,2628.6,2627.7,2.61247199]
[1646794182617,11.7055102,2628.6,2627.7,1.72346819]
[1646794182818,0.00378789,2628.3,2627.7,1.72346819]
[1646794183016,0.00378789,2628.3,2627.8,1.55887446]
[1646794183617,4.8,2628.5,2627.8,1.55887446]
[1646794183819,0.00334879,2628.3,2627.8,1.55887446]
[1646794184021,3.50334879,2628.3,2627.8,1.55887446]
[1646794184260,3.80334879,2628.3,2627.8,1.55887446]
[1646794184463,4.80334879,2628.3,2627.8,1.55887446]
[1646794184860,4.8,2628.3,2627.8,1.55887446]
[1646794185060,4.80334879,2628.3,2627.8,1.55887446]
[1646794186061,4.8,2628.3,2627.8,1.55887446]
[1646794186261,4.80334879,2628.3,2627.8,1.55887446]
[1646794187263,4.8,2628.3,2627.8,1.55887446]
[1646794187464,4.8037796,2628.3,2627.8,1.55887446]
[1646794188507,4.8,2628.3,2627.8,1.55887446]
[1646794188706,4.8037796,2628.3,2627.8,1.55887446]
[1646794189509,0.99205792,2627.9,2627.8,1.55887446]
[1646794189712,0.00129795,2627.8,2627.7,0.54706819]
[1646794190611,0.00129795,2627.8,2627.7,2.10613387]
[1646794201458,0.00378753,2628.3,2628.0,1.11618658]
[1646794201662,0.0155102,2628.6,2627.8,2.34e-06]
[1646794201663,0.0155102,2628.6,2628.1,1.55906568]
[1646794202060,0.0155102,2628.6,2627.8,2.34e-06]
[1646794202061,0.00378753,2628.3,2627.8,2.34e-06]
[1646794202463,0.00378753,2628.3,2627.8,1.55884197]
[1646794202859,0.0155102,2628.6,2627.8,1.55884197]
[1646794203305,0.00378796,2628.3,2627.8,1.55884197]
[1646794204006,0.0155102,2628.6,2627.8,1.55884197]
[1646794204407,0.00378796,2628.3,2627.8,1.55884197]
[1646794205211,3.5,2628.5,2627.8,1.55884197]
[1646794205407,4.5,2628.5,2627.8,1.55884197]
[1646794205608,0.0033488,2628.3,2627.8,1.55884197]
[1646794206408,4.5,2628.5,2627.8,1.55884197]
[1646794206851,0.0033488,2628.3,2627.8,1.55884197]
[1646794207758,4.5,2628.5,2627.8,1.55884197]
[1646794207956,0.0033488,2628.3,2627.8,1.55884197]
[1646794208856,4.5,2628.5,2627.8,1.55884197]
[1646794208857,1.0,2628.5,2627.8,1.55884197]
[1646794209158,0.89980272,2628.6,2627.8,2.55884197]
[1646794209159,0.00362106,2628.3,2627.8,2.55884197]
[1646794209357,0.00362106,2628.3,2627.9,1.55883963]
[1646794209756,0.00362106,2628.3,2627.9,1.94103963]
[1646794209957,0.00362106,2628.3,2628.0,1.55883963]
[1646794210260,0.0155102,2628.6,2628.5,0.96192527]
[1646794210505,0.0155102,2628.6,2628.5,1.55883963]
[1646794210709,0.0155102,2628.6,2628.1,1.55883963]
[1646794210905,0.0155102,2628.6,2628.2,1.55883963]
[1646794211106,0.0155102,2628.6,2628.3,1.55883963]
[1646794211307,0.0155102,2628.6,2628.4,1.55883963]
[1646794211512,0.0155102,2628.6,2628.5,1.55883963]
[1646794211710,0.0155102,2628.6,2628.5,2.53442128]
[1646794212110,0.0155102,2628.6,2628.5,6.03442128]
[1646794212917,0.3808,2629.2,2628.6,4.5]
[1646794213112,0.00454943,2629.6,2628.8,0.3822]
[1646794213312,0.00454943,2629.6,2629.4,0.95080146]
[1646794213614,0.00454943,2629.6,2629.5,2.48903963]
[1646794213812,0.8715542,2630.9,2629.5,5.19484071]
[1646794214011,10.3459,2631.1,2629.6,1.55883963]
[1646794214268,10.3459,2631.1,2629.7,1.2302]
[1646794214454,10.8833638,2631.1,2629.8,1.94103963]
[1646794214655,10.3459,2631.1,2630.0,0.3822]
[1646794214855,6.8459,2631.1,2630.1,2.10683963]
[1646794215055,3.8836,2631.1,2630.4,1.1644795]
[1646794215256,3.51741655,2631.2,2630.4,1.1644795]
[1646794215558,3.51741655,2631.2,2630.1,0.548]
[1646794215559,3.5,2631.1,2630.2,0.95067]
[1646794215759,15.19,2631.1,2630.1,1.0]
[1646794215963,3.5,2631.1,2630.1,1.0]
[1646794216167,0.00096,2631.4,2630.1,1.0]
[1646794216367,0.00096,2631.4,2630.1,1.848]
[1646794216561,3.50096,2631.4,2630.1,1.848]
[1646794216763,3.50096,2631.4,2630.1,2.2302]
[1646794216764,0.00113645,2630.7,2630.1,2.2302]
[1646794217164,0.00113645,2630.7,2630.5,0.92562402]
[1646794217361,1.17178258,2631.3,2630.1,1.3822]
[1646794217564,4.67178258,2631.3,2630.1,1.0]
[1646794217762,0.00378533,2630.5,2630.1,1.0]
[1646794218010,0.00378533,2630.5,2629.7,5.6345]
[1646794218218,0.00378533,2630.5,2629.7,4.3345]
[1646794218413,0.00378533,2630.5,2629.7,5.01388255]
[1646794218612,3.5,2630.9,2629.7,5.01388255]
[1646794218914,0.00378533,2630.2,2629.7,5.39608255]
[1646794219112,0.00378533,2630.2,2629.7,6.69608255]
[1646794219313,0.00378533,2630.2,2629.9,0.3822]
[1646794219512,0.00378533,2630.2,2630.1,0.3822]
[1646794219711,0.00378533,2630.2,2630.1,0.9302]
[1646794219914,3.5,2631.2,2630.7,0.96027311]
[1646794220112,0.01513905,2630.6,2630.4,1.0]
[1646794220328,0.01513905,2630.6,2630.4,0.3]
[1646794220527,0.01513905,2630.6,2630.5,0.548]
[1646794220717,0.01513905,2630.6,2630.1,0.548]
[1646794220914,0.01513905,2630.6,2629.7,3.7865]
[1646794221116,3.5,2631.4,2629.7,3.7865]
[1646794221315,1.10471879,2630.7,2629.9,2.10354667]
[1646794221517,1.10471879,2630.7,2629.9,0.88334667]
[1646794221518,0.00115512,2630.7,2629.9,0.88334667]
[1646794221763,0.00115512,2630.7,2630.0,1.0]
[1646794221958,0.00115512,2630.7,2629.9,0.88334667]
[1646794222158,1.1251,2631.3,2630.0,0.548]
[1646794222359,3.8,2631.2,2630.0,0.548]
[1646794222559,0.00378533,2630.5,2630.0,0.548]
[1646794223158,0.00378533,2630.5,2630.1,1.0]
[1646794223560,4.5,2631.2,2630.1,1.0]
[1646794223760,0.00378533,2630.4,2630.1,0.99583773]
[1646794224163,0.00378533,2630.4,2629.8,0.548]
[1646794224365,0.548,2630.3,2629.4,0.95080146]
[1646794224563,3.5,2630.2,2629.4,0.95080146]
[1646794224762,4.54356751,2630.2,2629.4,0.95080146]
[1646794224961,3.5,2630.1,2629.4,0.95080146]
[1646794225162,1.00504356,2629.8,2629.4,0.95080146]
[1646794225708,4.348,2629.7,2629.4,0.95080146]
[1646794226112,5.0,2629.6,2628.1,3.7865]
[1646794226318,5.0,2629.6,2627.8,2.34e-06]
[1646794226319,1.01411682,2628.4,2627.8,2.34e-06]
[1646794226515,1.01411682,2628.4,2627.8,1.55832342]
[1646794226714,0.3018,2628.6,2627.8,1.55832342]
[1646794226715,3.8018,2628.6,2627.8,2.34e-06]
[1646794226913,3.5,2628.6,2627.8,2.34e-06]
[1646794227316,4.5,2628.6,2627.8,2.34e-06]
[1646794227514,3.50378495,2628.6,2627.8,2.34e-06]
[1646794227717,4.80378495,2628.6,2627.8,2.34e-06]
[1646794228316,4.8,2628.6,2627.8,2.34e-06]
[1646794228518,1.15188655,2628.2,2627.7,0.54081853]
[1646794229758,3.5,2628.1,2627.7,0.54081853]
[1646794230160,4.5,2628.1,2627.7,0.54081853]
[1646794230960,16.19,2628.1,2627.7,0.54081853]
[1646794231164,4.5,2628.1,2627.7,0.54081853]
[1646794232062,16.19,2628.1,2627.7,0.54081853]
[1646794232261,16.19,2628.1,2627.1,0.0603878]
[1646794232262,5.0,2628.0,2627.4,0.01848747]
[1646794232465,15.738,2627.9,2627.4,0.01848747]
[1646794233112,16.738,2627.9,2627.4,0.01848747]
[1646794233314,0.89017538,2627.0,2626.9,0.1902]
[1646794233517,16.15091996,2627.7,2627.6,0.77273621]
[1646794233720,17.45091996,2627.7,2627.6,0.77273621]
[1646794233912,1.548,2627.7,2627.6,0.77273621]
[1646794234113,2.8568472,2628.3,2627.6,0.77273621]
[1646794234114,1.0,2628.3,2627.6,0.77273621]
[1646794234312,3.5,2628.3,2627.6,0.77273621]
[1646794234519,0.848,2628.3,2627.6,0.77273621]
[1646794234712,3.5,2628.2,2627.6,0.77273621]
[1646794234912,12.238,2628.1,2627.6,0.77273621]
[1646794235112,15.19,2628.0,2627.6,0.77273621]
[1646794235413,11.69,2627.8,2627.6,0.77273621]
[1646794235617,4.51298305,2627.7,2627.6,0.77273621]
[1646794235827,4.81298305,2627.7,2627.6,0.77273621]
[1646794236018,16.69,2627.6,2627.3,0.01852995]
[1646794236220,11.69,2627.4,2627.3,0.01852995]
[1646794236516,16.038,2627.4,2627.3,0.01852995]
[1646794236754,17.038,2627.4,2627.3,0.01852995]
[1646794238162,12.0722,2627.2,2625.9,0.16336279]
[1646794238363,15.19,2627.1,2626.0,1.55925467]
[1646794238562,15.19,2627.1,2626.1,0.1902]
[1646794238763,16.19,2627.1,2626.0,1.55925467]
[1646794238964,1.22648726,2626.5,2626.0,1.55925467]
[1646794239161,16.19,2627.1,2626.0,1.55925467]
[1646794239162,4.5,2627.1,2626.0,1.55925467]
[1646794239965,0.548,2627.0,2626.0,1.55925467]
[1646794240167,0.3822,2626.8,2625.4,0.1902]
[1646794240364,0.3822,2626.6,2625.3,0.1902]
[1646794240609,3.5,2626.5,2625.3,0.1902]
[1646794240809,4.8,2626.5,2625.4,1.55938706]
[1646794241010,1.3,2626.5,2625.5,0.1904]
[1646794241208,1.17096237,2626.3,2625.6,1.55938706]
[1646794241410,1.17096237,2626.3,2625.7,0.1904]
[1646794241611,1.17096237,2626.3,2625.8,1.55938706]
[1646794242010,1.17096237,2626.3,2625.6,0.1904]
[1646794242216,1.47096237,2626.3,2625.2,0.1904]
[1646794242610,1.47096237,2626.3,2625.3,1.55945477]
[1646794242814,1.11904749,2625.7,2625.3,1.55945477]
[1646794243413,1.11904749,2625.7,2625.3,1.57943168]
[1646794243611,1.11904749,2625.7,2625.3,0.01997691]
[1646794243813,3.5,2625.6,2625.3,0.01997691]
[1646794244257,1.0,2625.6,2624.6,0.1904]
[1646794244461,1.0,2625.6,2624.7,1.55999197]
[1646794244662,1.0,2625.6,2624.4,0.1904]
[1646794244663,0.96482417,2625.0,2624.9,0.01997896]
[1646794245462,0.96482417,2625.0,2624.3,0.00218077]
[1646794245663,0.96482417,2625.0,2624.2,1.56012255]
[1646794245863,2.561,2625.2,2624.8,0.00499472]
[1646794246063,2.1288,2625.2,2624.8,0.00499472]
[1646794246263,1.43955304,2625.1,2624.8,0.00499472]
[1646794246769,1.43955304,2625.1,2624.1,0.00218077]
[1646794246967,1.21112995,2624.6,2624.1,1.56016628]
[1646794247168,0.3,2625.1,2624.6,0.85918558]
[1646794247567,13.0161,2625.3,2624.6,0.85918558]
[1646794247770,11.69,2625.1,2624.6,0.85918558]
[1646794248017,0.02608,2625.0,2624.6,0.85918558]
[1646794248217,0.02608,2625.0,2624.7,0.00482156]
[1646794248218,1.03277088,2624.9,2624.7,0.00482156]